fUSD/lending_fUSD_20260513
["ID","MTS","AMOUNT","RATE_DAILY","PERIOD"]
[422159647,1778639441000,-348456.17529003,0.00015,2]
[422159643,1778639441000,-666.0,0.00014999,2]
[422159638,1778639441000,-500.0,0.00014999,2]
[422159646,1778639441000,-219.4,0.00015,2]
[422159644,1778639441000,-16651238.75430529,0.00015,2]
[422159639,1778639441000,-500.0,0.00014999,2]
[422159640,1778639441000,-500.0,0.00014999,2]
[422159642,1778639441000,-300.0,0.00014999,2]
[422159591,1778639441000,-500.0,0.00014999,2]
[422159636,1778639441000,-500.0,0.00014999,2]
[422159618,1778639441000,-542.23182778,0.00014999,2]
[422159629,1778639441000,-500.0,0.00014999,2]
[422159620,1778639441000,-500.0,0.00014999,2]
[422159619,1778639441000,-509.26577516,0.00014999,2]
[422159592,1778639441000,-500.0,0.00014999,2]
[422159595,1778639441000,-523.51963228,0.00014999,2]
[422159598,1778639441000,-830.48,0.00014999,2]
[422159594,1778639441000,-500.0,0.00014999,2]
[422159593,1778639441000,-500.0,0.00014999,2]
[422159599,1778639441000,-830.48,0.00014999,2]
[422159596,1778639441000,-830.48,0.00014999,2]
[422159597,1778639441000,-830.48,0.00014999,2]
[422159602,1778639441000,-830.48,0.00014999,2]
[422159612,1778639441000,-830.48,0.00014999,2]
[422159613,1778639441000,-830.48,0.00014999,2]
[422159603,1778639441000,-830.48,0.00014999,2]
[422159590,1778639441000,-500.0,0.00014999,2]
[422159609,1778639441000,-830.48,0.00014999,2]
[422159604,1778639441000,-830.48,0.00014999,2]
[422159615,1778639441000,-500.0,0.00014999,2]
[422159617,1778639441000,-500.0,0.00014999,2]
[422159614,1778639441000,-830.59005628,0.00014999,2]
[422159606,1778639441000,-830.48,0.00014999,2]
[422159611,1778639441000,-830.48,0.00014999,2]
[422159616,1778639441000,-500.0,0.00014999,2]
[422159605,1778639441000,-830.48,0.00014999,2]
[422159610,1778639441000,-830.48,0.00014999,2]
[422159607,1778639441000,-830.48,0.00014999,2]
[422159601,1778639441000,-830.48,0.00014999,2]
[422159608,1778639441000,-830.48,0.00014999,2]
[422159696,1778639442000,-500.0,0.00015,2]
[422159695,1778639442000,-500.0,0.00015,2]
[422159688,1778639442000,-500.0,0.00015,2]
[422159678,1778639442000,-500.0,0.00015,2]
[422159685,1778639442000,-500.0,0.00015,2]
[422159687,1778639442000,-500.0,0.00015,2]
[422159684,1778639442000,-500.0,0.00015,2]
[422159686,1778639442000,-500.0,0.00015,2]
[422159683,1778639442000,-500.0,0.00015,2]
[422159681,1778639442000,-500.0,0.00015,2]
[422159698,1778639442000,-500.0,0.00015,2]
[422159682,1778639442000,-500.0,0.00015,2]
[422159700,1778639442000,-500.0,0.00015,2]
[422159694,1778639442000,-500.0,0.00015,2]
[422159697,1778639442000,-500.0,0.00015,2]
[422159699,1778639442000,-500.0,0.00015,2]
[422159691,1778639442000,-500.0,0.00015,2]
[422159690,1778639442000,-500.0,0.00015,2]
[422159693,1778639442000,-500.0,0.00015,2]
[422159702,1778639442000,-500.0,0.00015,2]
[422159692,1778639442000,-500.0,0.00015,2]
[422159689,1778639442000,-500.0,0.00015,2]
[422159706,1778639442000,-500.0,0.00015,2]
[422159704,1778639442000,-500.0,0.00015,2]
[422159708,1778639442000,-500.0,0.00015,2]
[422159680,1778639442000,-500.0,0.00015,2]
[422159701,1778639442000,-500.0,0.00015,2]
[422159679,1778639442000,-500.0,0.00015,2]
[422159650,1778639442000,-381333.908254,0.00015,2]
[422159677,1778639442000,-500.0,0.00015,2]
[422159707,1778639442000,-500.0,0.00015,2]
[422159661,1778639442000,-500.0,0.00015,2]
[422159651,1778639442000,-22407.56471672,0.00015,2]
[422159653,1778639442000,-151.0,0.00015,2]
[422159654,1778639442000,-151.0,0.00015,2]
[422159655,1778639442000,-151.0,0.00015,2]
[422159649,1778639442000,-2237.0,0.00015,2]
[422159660,1778639442000,-500.0,0.00015,2]
[422159652,1778639442000,-151.0,0.00015,2]
[422159656,1778639442000,-151.0,0.00015,2]
[422159659,1778639442000,-151.0,0.00015,2]
[422159657,1778639442000,-743.4,0.00015,2]
[422159658,1778639442000,-151.0,0.00015,2]
[422159663,1778639442000,-500.0,0.00015,2]
[422159670,1778639442000,-500.0,0.00015,2]
[422159671,1778639442000,-500.0,0.00015,2]
[422159673,1778639442000,-500.0,0.00015,2]
[422159672,1778639442000,-500.0,0.00015,2]
[422159674,1778639442000,-500.0,0.00015,2]
[422159675,1778639442000,-500.0,0.00015,2]
[422159664,1778639442000,-500.0,0.00015,2]
[422159662,1778639442000,-500.0,0.00015,2]
[422159665,1778639442000,-500.0,0.00015,2]
[422159667,1778639442000,-500.0,0.00015,2]
[422159666,1778639442000,-500.0,0.00015,2]
[422159669,1778639442000,-500.0,0.00015,2]
[422159668,1778639442000,-500.0,0.00015,2]
[422159676,1778639442000,-500.0,0.00015,2]
[422159710,1778639442000,-500.0,0.00015,2]
[422159705,1778639442000,-500.0,0.00015,2]
[422159755,1778639442000,-1030.700733,0.00015,2]
[422159751,1778639442000,-151.0,0.00015,2]
[422159752,1778639442000,-151.0,0.00015,2]
[422159750,1778639442000,-151.0,0.00015,2]
[422159740,1778639442000,-500.0,0.00015,2]
[422159745,1778639442000,-500.0,0.00015,2]
[422159742,1778639442000,-500.0,0.00015,2]
[422159744,1778639442000,-500.0,0.00015,2]
[422159743,1778639442000,-500.0,0.00015,2]
[422159748,1778639442000,-151.0,0.00015,2]
[422159746,1778639442000,-640.533142,0.00015,2]
[422159753,1778639442000,-301.315249,0.00015,2]
[422159758,1778639442000,-1030.700733,0.00015,2]
[422159757,1778639442000,-1030.700733,0.00015,2]
[422159756,1778639442000,-1030.700733,0.00015,2]
[422159754,1778639442000,-1030.700733,0.00015,2]
[422159765,1778639442000,-151.0,0.00015,2]
[422159764,1778639442000,-151.0,0.00015,2]
[422159761,1778639442000,-1030.700733,0.00015,2]
[422159759,1778639442000,-1030.700733,0.00015,2]
[422159760,1778639442000,-1030.700733,0.00015,2]
[422159763,1778639442000,-151.0,0.00015,2]
[422159762,1778639442000,-151.0,0.00015,2]
[422159769,1778639442000,-306.408303,0.00015,2]
[422159766,1778639442000,-150.0,0.00015,2]
[422159768,1778639442000,-306.408303,0.00015,2]
[422159714,1778639442000,-500.0,0.00015,2]
[422159767,1778639442000,-1498.34566035,0.00015,2]
[422159749,1778639442000,-151.0,0.00015,2]
[422159735,1778639442000,-500.0,0.00015,2]
[422159741,1778639442000,-500.0,0.00015,2]
[422159736,1778639442000,-500.0,0.00015,2]
[422159712,1778639442000,-500.0,0.00015,2]
[422159711,1778639442000,-500.0,0.00015,2]
[422159703,1778639442000,-500.0,0.00015,2]
[422159709,1778639442000,-500.0,0.00015,2]
[422159713,1778639442000,-500.0,0.00015,2]
[422159716,1778639442000,-500.0,0.00015,2]
[422159726,1778639442000,-500.0,0.00015,2]
[422159727,1778639442000,-500.0,0.00015,2]
[422159717,1778639442000,-500.0,0.00015,2]
[422159737,1778639442000,-500.0,0.00015,2]
[422159718,1778639442000,-500.0,0.00015,2]
[422159723,1778639442000,-500.0,0.00015,2]
[422159719,1778639442000,-500.0,0.00015,2]
[422159720,1778639442000,-500.0,0.00015,2]
[422159724,1778639442000,-500.0,0.00015,2]
[422159715,1778639442000,-500.0,0.00015,2]
[422159738,1778639442000,-500.0,0.00015,2]
[422159725,1778639442000,-500.0,0.00015,2]
[422159733,1778639442000,-500.0,0.00015,2]
[422159739,1778639442000,-500.0,0.00015,2]
[422159729,1778639442000,-500.0,0.00015,2]
[422159732,1778639442000,-500.0,0.00015,2]
[422159734,1778639442000,-500.0,0.00015,2]
[422159731,1778639442000,-500.0,0.00015,2]
[422159728,1778639442000,-500.0,0.00015,2]
[422159721,1778639442000,-500.0,0.00015,2]
[422159722,1778639442000,-500.0,0.00015,2]
[422159730,1778639442000,-500.0,0.00015,2]
[422159826,1778639443000,-350.0,0.00015442,2]
[422159815,1778639443000,-350.0,0.00015161,2]
[422159816,1778639443000,-350.0,0.00015326,2]
[422159811,1778639443000,-450.198313,0.00015068,2]
[422159813,1778639443000,-570.38,0.00015068,2]
[422159812,1778639443000,-450.198313,0.00015068,2]
[422159814,1778639443000,-350.0,0.00015116,2]
[422159804,1778639443000,-450.198313,0.00015068,2]
[422159809,1778639443000,-450.198313,0.00015068,2]
[422159807,1778639443000,-450.198313,0.00015068,2]
[422159827,1778639443000,-314.0,0.00015458,2]
[422159810,1778639443000,-450.198313,0.00015068,2]
[422159818,1778639443000,-200.0,0.00015423,2]
[422159840,1778639443000,-214.91342137,0.00016,3]
[422159819,1778639443000,-200.0,0.00015423,2]
[422159823,1778639443000,-200.0,0.00015423,2]
[422159820,1778639443000,-200.0,0.00015423,2]
[422159825,1778639443000,-168.0,0.00015423,2]
[422159822,1778639443000,-200.0,0.00015423,2]
[422159824,1778639443000,-200.0,0.00015423,2]
[422159821,1778639443000,-200.0,0.00015423,2]
[422159831,1778639443000,-1048.83,0.000155,2]
[422159830,1778639443000,-9778.47009303,0.00015469,2]
[422159828,1778639443000,-1574.93,0.00015464,2]
[422159832,1778639443000,-10000.01,0.00015557,2]
[422159834,1778639443000,-10000.01,0.00015703,2]
[422159798,1778639443000,-152.305271,0.00015,2]
[422159817,1778639443000,-166.45,0.00015374,2]
[422159806,1778639443000,-450.198313,0.00015068,2]
[422159770,1778639443000,-306.408303,0.00015,2]
[422159802,1778639443000,-151.0,0.00015,2]
[422159771,1778639443000,-306.408303,0.00015,2]
[422159775,1778639443000,-306.408303,0.00015,2]
[422159773,1778639443000,-306.408303,0.00015,2]
[422159774,1778639443000,-306.408303,0.00015,2]
[422159776,1778639443000,-150.0,0.00015,2]
[422159779,1778639443000,-899.27097149,0.00015,2]
[422159780,1778639443000,-151.0,0.00015,2]
[422159781,1778639443000,-151.0,0.00015,2]
[422159772,1778639443000,-306.408303,0.00015,2]
[422159778,1778639443000,-150.0,0.00015,2]
[422159777,1778639443000,-14427.46311805,0.00015,2]
[422159782,1778639443000,-151.0,0.00015,2]
[422159784,1778639443000,-151.0,0.00015,2]
[422159794,1778639443000,-667.634439,0.00015,2]
[422159795,1778639443000,-667.634439,0.00015,2]
[422159783,1778639443000,-151.0,0.00015,2]
[422159796,1778639443000,-667.634439,0.00015,2]
[422159785,1778639443000,-154.609324,0.00015,2]
[422159786,1778639443000,-170.0,0.00015,2]
[422159793,1778639443000,-667.634439,0.00015,2]
[422159787,1778639443000,-170.45495989,0.00015,2]
[422159791,1778639443000,-667.634439,0.00015,2]
[422159792,1778639443000,-667.634439,0.00015,2]
[422159788,1778639443000,-667.634439,0.00015,2]
[422159789,1778639443000,-667.634439,0.00015,2]
[422159797,1778639443000,-151.0,0.00015,2]
[422159800,1778639443000,-151.0,0.00015,2]
[422159808,1778639443000,-450.198313,0.00015068,2]
[422159837,1778639443000,-433.0,0.00015725,2]
[422159890,1778639443000,-151.0,0.00017098,2]
[422159833,1778639443000,-10000.01,0.00015617,2]
[422159867,1778639443000,-450.0,0.00017,2]
[422159871,1778639443000,-736.0,0.00017026,2]
[422159873,1778639443000,-151.0,0.00017098,2]
[422159875,1778639443000,-151.0,0.00017098,2]
[422159869,1778639443000,-450.0,0.00017,2]
[422159868,1778639443000,-450.0,0.00017,2]
[422159874,1778639443000,-151.0,0.00017098,2]
[422159872,1778639443000,-213.8,0.00017048,2]
[422159870,1778639443000,-579.0,0.00017,2]
[422159878,1778639443000,-151.0,0.00017098,2]
[422159879,1778639443000,-151.0,0.00017098,2]
[422159881,1778639443000,-151.0,0.00017098,2]
[422159880,1778639443000,-151.0,0.00017098,2]
[422159883,1778639443000,-151.0,0.00017098,2]
[422159885,1778639443000,-151.0,0.00017098,2]
[422159884,1778639443000,-151.0,0.00017098,2]
[422159887,1778639443000,-151.0,0.00017098,2]
[422159886,1778639443000,-151.0,0.00017098,2]
[422159889,1778639443000,-151.0,0.00017098,2]
[422159888,1778639443000,-151.0,0.00017098,2]
[422159896,1778639443000,-1150.0,0.00017158,2]
[422159891,1778639443000,-151.0,0.00017098,2]
[422159895,1778639443000,-1150.0,0.00017158,2]
[422159893,1778639443000,-1150.0,0.00017158,2]
[422159894,1778639443000,-1150.0,0.00017158,2]
[422159892,1778639443000,-151.0,0.00017098,2]
[422159838,1778639443000,-2000.0,0.00015751,2]
[422159865,1778639443000,-450.0,0.00017,2]
[422159876,1778639443000,-151.0,0.00017098,2]
[422159882,1778639443000,-151.0,0.00017098,2]
[422159866,1778639443000,-450.0,0.00017,2]
[422159877,1778639443000,-151.0,0.00017098,2]
[422159841,1778639443000,-2351.0,0.00016221,2]
[422159839,1778639443000,-300.0,0.00016,2]
[422159835,1778639443000,-156.84,0.00015717,2]
[422159842,1778639443000,-5162.7751818,0.0001627,2]
[422159843,1778639443000,-570.38,0.00016438,2]
[422159845,1778639443000,-1154.057842,0.00016438,2]
[422159844,1778639443000,-1154.057842,0.00016438,2]
[422159846,1778639443000,-1154.057842,0.00016438,2]
[422159847,1778639443000,-1154.057842,0.00016438,2]
[422159852,1778639443000,-151.0,0.00016438,2]
[422159850,1778639443000,-1154.057842,0.00016438,2]
[422159848,1778639443000,-1154.057842,0.00016438,2]
[422159849,1778639443000,-1154.057842,0.00016438,2]
[422159829,1778639443000,-10000.01,0.00015467,2]
[422159861,1778639443000,-2005.9555727,0.00016879,2]
[422159851,1778639443000,-1154.057842,0.00016438,2]
[422159858,1778639443000,-150.0,0.00016678,2]
[422159860,1778639443000,-184.57,0.00016712,2]
[422159863,1778639443000,-450.0,0.00017,2]
[422159859,1778639443000,-242.0,0.00016678,2]
[422159862,1778639443000,-450.0,0.00017,2]
[422159864,1778639443000,-450.0,0.00017,2]
[422159857,1778639443000,-156.84,0.00016503,2]
[422159856,1778639443000,-159.974894,0.00016438,2]
[422159855,1778639443000,-151.0,0.00016438,2]
[422159853,1778639443000,-151.0,0.00016438,2]
[422159854,1778639443000,-151.0,0.00016438,2]
[422159933,1778639444000,-300.0,0.00018637,2]
[422159946,1778639444000,-1062.0,0.00019,2]
[422159937,1778639444000,-439.0,0.00018637,2]
[422159938,1778639444000,-750.0,0.00018644,2]
[422159934,1778639444000,-300.0,0.00018637,2]
[422159930,1778639444000,-300.0,0.00018637,2]
[422159935,1778639444000,-300.0,0.00018637,2]
[422159929,1778639444000,-300.0,0.00018637,2]
[422159931,1778639444000,-300.0,0.00018637,2]
[422159925,1778639444000,-1252.0,0.00018447,2]
[422159947,1778639444000,-157.0,0.00019,2]
[422159928,1778639444000,-2236.95670848,0.00018523,2]
[422159932,1778639444000,-300.0,0.00018637,2]
[422159948,1778639444000,-154.0,0.00019,2]
[422159941,1778639444000,-156.84,0.00018861,2]
[422159940,1778639444000,-199.97476618,0.000187,2]
[422159942,1778639444000,-2000.0,0.00018901,2]
[422159939,1778639444000,-150.0,0.00018644,7]
[422159944,1778639444000,-168.0,0.00019,2]
[422159945,1778639444000,-175.1558135,0.00019,2]
[422159943,1778639444000,-344.69597531,0.00019,2]
[422159959,1778639444000,-500.0,0.00019178,2]
[422159958,1778639444000,-500.0,0.00019178,2]
[422159957,1778639444000,-500.0,0.00019178,2]
[422159950,1778639444000,-151.0,0.00019,2]
[422159960,1778639444000,-500.0,0.00019178,2]
[422159962,1778639444000,-500.0,0.00019178,2]
[422159951,1778639444000,-152.0,0.00019,2]
[422159949,1778639444000,-287.0,0.00019,2]
[422159936,1778639444000,-300.0,0.00018637,2]
[422159898,1778639444000,-1150.0,0.00017158,2]
[422159926,1778639444000,-150.0,0.00018455,2]
[422159961,1778639444000,-500.0,0.00019178,2]
[422159897,1778639444000,-1150.0,0.00017158,2]
[422159900,1778639444000,-1150.0,0.00017158,2]
[422159910,1778639444000,-12594.41,0.00017728,2]
[422159911,1778639444000,-999.99,0.00017728,2]
[422159899,1778639444000,-1150.0,0.00017158,2]
[422159901,1778639444000,-1150.0,0.00017158,2]
[422159905,1778639444000,-2000.0,0.00017326,2]
[422159903,1778639444000,-309.0,0.00017227,2]
[422159904,1778639444000,-156.84,0.00017289,2]
[422159902,1778639444000,-1007.0,0.00017158,2]
[422159907,1778639444000,-743.4,0.000174,2]
[422159909,1778639444000,-1642.9,0.00017611,2]
[422159927,1778639444000,-199.97476618,0.000185,2]
[422159906,1778639444000,-169.15,0.00017357,2]
[422159913,1778639444000,-2157.14243826,0.00017975,2]
[422159912,1778639444000,-3292.0,0.00017844,2]
[422159914,1778639444000,-199.97476618,0.00018,2]
[422159916,1778639444000,-156.84,0.00018075,2]
[422159923,1778639444000,-150.0,0.00018412,2]
[422159919,1778639444000,-150.0,0.00018412,2]
[422159920,1778639444000,-150.0,0.00018412,2]
[422159917,1778639444000,-199.97476618,0.000182,2]
[422159922,1778639444000,-150.0,0.00018412,2]
[422159915,1778639444000,-350.0,0.00018,2]
[422159924,1778639444000,-294.0,0.00018412,2]
[422159918,1778639444000,-199.97476618,0.000184,2]
[422159921,1778639444000,-150.0,0.00018412,2]
[422159908,1778639444000,-2080.17592889,0.00017427,2]
[422159952,1778639444000,-345.90912459,0.00019,2]
[422160012,1778639444000,-6051.0,0.00019408,2]
[422159955,1778639444000,-528.0,0.00019178,2]
[422159995,1778639444000,-500.0,0.00019178,2]
[422160002,1778639444000,-151.0,0.00019178,2]
[422159994,1778639444000,-500.0,0.00019178,2]
[422159996,1778639444000,-500.0,0.00019178,2]
[422159997,1778639444000,-500.0,0.00019178,2]
[422159992,1778639444000,-500.0,0.00019178,2]
[422159998,1778639444000,-500.0,0.00019178,2]
[422159999,1778639444000,-179.07964959,0.00019178,2]
[422159993,1778639444000,-500.0,0.00019178,2]
[422160004,1778639444000,-151.0,0.00019178,2]
[422160003,1778639444000,-151.0,0.00019178,2]
[422160014,1778639444000,-1656.12,0.000195,2]
[422160006,1778639444000,-151.0,0.00019178,2]
[422160001,1778639444000,-2039.84,0.00019178,2]
[422160021,1778639444000,-2129.0,0.00019975,2]
[422160008,1778639444000,-151.0,0.00019178,2]
[422160015,1778639444000,-2405.55389864,0.00019619,2]
[422160005,1778639444000,-151.0,0.00019178,2]
[422160007,1778639444000,-151.0,0.00019178,2]
[422160009,1778639444000,-151.0,0.00019178,2]
[422160011,1778639444000,-3541.0,0.00019408,2]
[422160013,1778639444000,-158.60995306,0.00019485,2]
[422160016,1778639444000,-4609.0,0.00019628,2]
[422160019,1778639444000,-1269.0,0.00019908,2]
[422160018,1778639444000,-151.154,0.00019908,2]
[422160020,1778639444000,-1226.944,0.00019908,2]
[422160017,1778639444000,-1803.572,0.00019863,10]
[422159953,1778639444000,-208.64,0.00019045,2]
[422160010,1778639444000,-510.0,0.00019397,2]
[422159989,1778639444000,-500.0,0.00019178,2]
[422160022,1778639444000,-300.0,0.0002,2]
[422160000,1778639444000,-189.705507,0.00019178,2]
[422159954,1778639444000,-2319.72410669,0.00019071,2]
[422159956,1778639444000,-3000.0,0.00019178,2]
[422159965,1778639444000,-500.0,0.00019178,2]
[422159964,1778639444000,-500.0,0.00019178,2]
[422159966,1778639444000,-500.0,0.00019178,2]
[422159963,1778639444000,-500.0,0.00019178,2]
[422159968,1778639444000,-500.0,0.00019178,2]
[422159967,1778639444000,-500.0,0.00019178,2]
[422159991,1778639444000,-500.0,0.00019178,2]
[422159969,1778639444000,-500.0,0.00019178,2]
[422159970,1778639444000,-500.0,0.00019178,2]
[422159972,1778639444000,-500.0,0.00019178,2]
[422159974,1778639444000,-500.0,0.00019178,2]
[422159975,1778639444000,-500.0,0.00019178,2]
[422159971,1778639444000,-500.0,0.00019178,2]
[422159977,1778639444000,-500.0,0.00019178,2]
[422159990,1778639444000,-500.0,0.00019178,2]
[422159973,1778639444000,-500.0,0.00019178,2]
[422159985,1778639444000,-500.0,0.00019178,2]
[422159982,1778639444000,-500.0,0.00019178,2]
[422159980,1778639444000,-500.0,0.00019178,2]
[422159981,1778639444000,-500.0,0.00019178,2]
[422159983,1778639444000,-500.0,0.00019178,2]
[422159986,1778639444000,-500.0,0.00019178,2]
[422159979,1778639444000,-500.0,0.00019178,2]
[422159978,1778639444000,-500.0,0.00019178,2]
[422159987,1778639444000,-500.0,0.00019178,2]
[422159988,1778639444000,-500.0,0.00019178,2]
[422159976,1778639444000,-500.0,0.00019178,2]
[422159984,1778639444000,-500.0,0.00019178,2]
[422160061,1778639445000,-4849.82,0.00020548,2]
[422160063,1778639445000,-4849.82,0.00020548,2]
[422160062,1778639445000,-4849.82,0.00020548,2]
[422160059,1778639445000,-4849.82,0.00020548,2]
[422160056,1778639445000,-4849.82,0.00020548,2]
[422160065,1778639445000,-4849.82,0.00020548,2]
[422160060,1778639445000,-4849.82,0.00020548,2]
[422160057,1778639445000,-4849.82,0.00020548,2]
[422160064,1778639445000,-4849.82,0.00020548,2]
[422160066,1778639445000,-4849.82,0.00020548,2]
[422160054,1778639445000,-4849.82,0.00020548,2]
[422160058,1778639445000,-4849.82,0.00020548,2]
[422160078,1778639445000,-533.60604069,0.00021501,24]
[422160082,1778639445000,-154.66856654,0.00021501,24]
[422160076,1778639445000,-269.95436258,0.00021501,24]
[422160067,1778639445000,-4849.82,0.00020548,2]
[422160080,1778639445000,-151.75130915,0.00021501,24]
[422160077,1778639445000,-509.93655466,0.00021501,24]
[422160079,1778639445000,-467.12527028,0.00021501,24]
[422160069,1778639445000,-1062.0,0.00021,2]
[422160070,1778639445000,-157.0,0.00021,2]
[422160071,1778639445000,-154.0,0.00021,2]
[422160073,1778639445000,-151.0,0.00021,2]
[422160074,1778639445000,-164.09572338,0.00021,2]
[422160075,1778639445000,-1060.93,0.00021,2]
[422160072,1778639445000,-287.0,0.00021,2]
[422160055,1778639445000,-4849.82,0.00020548,2]
[422160068,1778639445000,-168.0,0.00021,2]
[422160050,1778639445000,-4849.82,0.00020548,2]
[422160032,1778639445000,-400.0,0.0002,2]
[422160051,1778639445000,-4849.82,0.00020548,2]
[422160081,1778639445000,-155.42053978,0.00021501,24]
[422160026,1778639445000,-157.0,0.0002,2]
[422160025,1778639445000,-1062.0,0.0002,2]
[422160023,1778639445000,-750.0,0.0002,2]
[422160024,1778639445000,-168.0,0.0002,2]
[422160027,1778639445000,-154.0,0.0002,2]
[422160028,1778639445000,-882.0,0.0002,2]
[422160038,1778639445000,-150.0,0.00020019,2]
[422160039,1778639445000,-451.51196549,0.00020167,2]
[422160029,1778639445000,-287.0,0.0002,2]
[422160034,1778639445000,-1264.0,0.0002,2]
[422160037,1778639445000,-150.272,0.00020019,2]
[422160031,1778639445000,-152.0,0.0002,2]
[422160036,1778639445000,-150.317,0.00020019,2]
[422160033,1778639445000,-150.0,0.0002,10]
[422160035,1778639445000,-11377.62,0.0002,2]
[422160040,1778639445000,-743.4,0.000202,2]
[422160047,1778639445000,-4849.82,0.00020548,2]
[422160045,1778639445000,-4961.47,0.00020548,2]
[422160044,1778639445000,-4961.47,0.00020548,2]
[422160042,1778639445000,-4961.47,0.00020548,2]
[422160041,1778639445000,-528.649166,0.00020547,2]
[422160046,1778639445000,-4961.48,0.00020548,2]
[422160043,1778639445000,-4961.47,0.00020548,2]
[422160048,1778639445000,-4849.82,0.00020548,2]
[422160049,1778639445000,-4849.82,0.00020548,2]
[422160052,1778639445000,-4849.82,0.00020548,2]
[422160053,1778639445000,-4849.82,0.00020548,2]
[422160083,1778639445000,-6453.0,0.00021591,2]
[422160030,1778639445000,-151.0,0.0002,2]
[422160093,1778639445000,-667.634439,0.00021947,2]
[422160110,1778639445000,-281.08,0.00022466,2]
[422160119,1778639445000,-509.61826119,0.00022769,2]
[422160124,1778639445000,-10000.0,0.00023,30]
[422160127,1778639445000,-172.22749649,0.00023,2]
[422160120,1778639445000,-750.103,0.00022908,2]
[422160123,1778639445000,-803.8514923,0.00023,2]
[422160128,1778639445000,-287.0,0.00023,2]
[422160126,1778639445000,-1062.0,0.00023,2]
[422160122,1778639445000,-156.17516576,0.00022961,28]
[422160121,1778639445000,-1223.0,0.00022908,2]
[422160125,1778639445000,-168.0,0.00023,2]
[422160129,1778639445000,-151.0,0.00023,2]
[422160130,1778639445000,-160.0,0.00023,30]
[422160132,1778639445000,-306.408303,0.00023,2]
[422160142,1778639445000,-151.0,0.00023288,2]
[422160131,1778639445000,-306.408303,0.00023,2]
[422160134,1778639445000,-306.408303,0.00023,2]
[422160133,1778639445000,-306.408303,0.00023,2]
[422160135,1778639445000,-214.91342137,0.00023,30]
[422160136,1778639445000,-151.0,0.00023,2]
[422160137,1778639445000,-151.0,0.00023,2]
[422160141,1778639445000,-151.0,0.00023288,2]
[422160140,1778639445000,-151.0,0.00023288,2]
[422160139,1778639445000,-151.0,0.00023288,2]
[422160138,1778639445000,-246.83548018,0.0002314,2]
[422160144,1778639445000,-151.0,0.00023288,2]
[422160090,1778639445000,-1154.057842,0.00021947,2]
[422160115,1778639445000,-3654.09347375,0.000226,2]
[422160114,1778639445000,-5089.69,0.00022562,2]
[422160143,1778639445000,-151.0,0.00023288,2]
[422160116,1778639445000,-151.0,0.000226,2]